Cogmind - Beta 14 *** ADVENTURER MODE // 2024.10.29 @ 14:49:28 Player: 7604 Result: Destroyed by H-77 Assassin with Coil Gun Performance ------------- Evolutions (6) 3000 Regions Visited (26) 5200 Robots Destroyed (169) 845 Value Destroyed (6233) 6233 Prototype IDs (24) 480 Alien Tech Used (1) 200 Bonus (4596) 4596 TOTAL SCORE: 20554 Bonus ------- High Alert Combat Kills 324 Follower Combat Kills 2995 Awakened Behemoth Slayer 1000 Entered Garrisons 200 Network Hubs Disabled 400 Met Data Miner 300 Met Zhirov 300 Built Enhanced Grunts 300 Friendly Fire -1223 Cogmind --------- Core Integrity 0/1150 Matter 243/300 Energy 52/100 System Corruption 11% Temperature Cool (0) Movement Core (50) Location -4/Garrison Parts ------- > --- POWER (1) -------- (None) > --- PROPULSION (7) --- (None) > --- UTILITY (10) ----- (None) > --- WEAPON (2) ------- CR-A16's Behemoth Slayer > --- INVENTORY (5) ---- Stasis Canceller Centrium Medium Armor Plating Point Defense Array Relay Coupler [Sentry] (33) Advanced KE Penetrator Peak State ------------ > --- POWER ------------ Light Fission Core > --- PROPULSION ------- Biomechanical Wings Nuclear Pulse Array Impulse Thruster Field Propulsion Array > --- UTILITY ---------- Advanced Heat Sink Medium Storage Unit Structural Scanner Advanced Sensor Array Advanced Signal Interpreter Targeting Computer Centrium Medium Armor Plating Centrium Medium Armor Plating Hacking Suite > --- WEAPON ----------- Advanced KE Penetrator CR-A16's Behemoth Slayer > --- INVENTORY -------- Enhanced Fission Core Field Propulsion Drive Field Propulsion Drive Impulse Thruster Advanced Signal Interpreter Improved Transmission Jammer ECM Suite Improved Powered Armor Heavy Missile Launcher [Rating: 104] Favorites ----------- Power Micro Nuclear Core Engine Improved Ion Engine Power Core Micro Nuclear Core Propulsion Carbon-fiber Leg Treads Heavy Treads Leg Carbon-fiber Leg Flight Unit Improved VTOL Module Utility Hacking Suite Device Structural Scanner Storage Medium Storage Unit Processor Machine Analyzer Hackware Hacking Suite Protection Hardened Medium Armor Plating Weapon Chainsword Energy Gun EM Pulse Gun Energy Cannon EM Pulse Cannon Ballistic Gun High-powered Shotgun Ballistic Cannon Heavy Gauss Cannon Launcher Improved Grenade Launcher Slashing Weapon Chainsword Piercing Weapon CR-A16's Behemoth Slayer Build | -11 -10 -10 -9 -9 -8 -7 -7 -7 -7 -7 -7 -6 -6 -6 -6 -6 -5 -5 -5 -5 -5 -5 -5 -5 -4 -4 ------- Run | Yrd Mat Min Mat Min Mat Fac Was Fac Low Low Dat Pro Fac Low Low Zio Pro Fac Was Fac Ext Cet Arc Hub Fac Gar Slots Evolved 12 | . . . 2 . 2 2 . . . . . . 2 . . . . 2 . . . . . . 2 . Power . | . . . . . . . . . . . . . . . . . . . . . . . . . . . Propulsion 4 | . . . 2 . . 1 . . . . . . . . . . . . . . . . . . 1 . Utility 8 | . . . . . 2 1 . . . . . . 2 . . . . 2 . . . . . . 1 . Weapon . | . . . . . . . . . . . . . . . . . . . . . . . . . . . Parts Attached 215 | 7 11 1 18 4 25 7 4 41 3 2 . 2 15 3 2 2 6 10 4 9 12 8 5 4 10 . Power 28 | 1 2 . 3 . 3 1 . 6 1 . . . . . . . 1 1 . 1 3 1 . 1 3 . Engine 8 | 1 1 . 3 . . . . . . . . . . . . . . . . . . . . 1 2 . Core 20 | . 1 . . . 3 1 . 6 1 . . . . . . . 1 1 . 1 3 1 . . 1 . Reactor . | . . . . . . . . . . . . . . . . . . . . . . . . . . . Propulsion 49 | 2 2 . 5 . 6 1 . 18 . 1 . . 3 . 1 . 1 3 2 . . . 3 . 1 . Treads 1 | . . . . . . . . . . . . . . . . . . . . . . . . . 1 . Leg 25 | 2 2 . 5 . 6 1 . 9 . . . . . . . . . . . . . . . . . . Wheel . | . . . . . . . . . . . . . . . . . . . . . . . . . . . Hover . | . . . . . . . . . . . . . . . . . . . . . . . . . . . Flight 23 | . . . . . . . . 9 . 1 . . 3 . 1 . 1 3 2 . . . 3 . . . Utility 75 | 1 3 . 4 . 8 3 1 9 1 . . 2 10 . 1 . 4 4 1 5 7 3 1 3 4 . Device 24 | . 2 . . . 5 . . . 1 . . 1 2 . . . 2 . . 3 3 . . 2 3 . Storage 6 | 1 . . 1 . 1 . . 2 . . . . 1 . . . . . . . . . . . . . Processor 5 | . . . . . . 1 . . . . . . 1 . . . . 1 . 1 1 . . . . . Hackware 12 | . . . . . . . . 3 . . . 1 3 . . . . 2 . . . 1 1 1 . . Protection 28 | . 1 . 3 . 2 2 1 4 . . . . 3 . 1 . 2 1 1 1 3 2 . . 1 . Artifact . | . . . . . . . . . . . . . . . . . . . . . . . . . . . Weapon 63 | 3 4 1 6 4 8 2 3 8 1 1 . . 2 3 . 2 . 2 1 3 2 4 1 . 2 . Energy Gun 13 | 1 3 . 3 2 2 1 1 . . . . . . . . . . . . . . . . . . . Energy Cannon 4 | . . . . 1 3 . . . . . . . . . . . . . . . . . . . . . Ballistic Gun 16 | 2 1 1 3 1 1 . . 1 . . . . . . . . . 1 . 1 . 2 1 . 1 . Ballistic Cannon 12 | . . . . . . . . 3 1 . . . . 3 . . . 1 1 1 2 . . . . . Launcher 9 | . . . . . 2 1 2 . . 1 . . 1 . . . . . . 1 . . . . 1 . Special Weapon . | . . . . . . . . . . . . . . . . . . . . . . . . . . . Impact Weapon . | . . . . . . . . . . . . . . . . . . . . . . . . . . . Slashing Weapon 6 | . . . . . . . . 4 . . . . 1 . . 1 . . . . . . . . . . Piercing Weapon 3 | . . . . . . . . . . . . . . . . 1 . . . . . 2 . . . . Special Melee Weapon . | . . . . . . . . . . . . . . . . . . . . . . . . . . . Unidentified Prototypes 6 | . . . . . 1 . . 1 . . . . . . 1 . . 1 . . . 2 . . . . Corrupted Parts 4 | . . . . . 1 . . 1 . . . . . . . . . . . . 2 . . . . . System Corruption 7 | . . . . . 1 . . 3 . . . . . . . . . . . . 3 . . . . . Parts Lost 60 | . 4 1 2 1 2 1 . 12 1 2 . 1 2 . . . 2 . . 4 3 1 2 9 10 . Power 11 | . 2 . 1 . . . . 2 1 . . . . . . . 1 . . . . 1 . 1 2 . Propulsion 18 | . . . . . . . . 7 . 2 . . . . . . 1 . . . . . 2 4 2 . Utility 24 | . 1 . . . 1 1 . 3 . . . 1 2 . . . . . . 3 3 . . 4 5 . Weapon 7 | . 1 1 1 1 1 . . . . . . . . . . . . . . 1 . . . . 1 . Highest Loss Streak 9 | . 3 1 1 1 1 1 . 2 1 2 . 1 2 . . . 2 . . 2 1 1 2 9 5 . To Critical Strikes . | . . . . . . . . . . . . . . . . . . . . . . . . . . . Average Slot Usage (%) 88 | . 92 99 99 99 99 95 100 94 92 84 84 83 86 86 86 87 85 85 79 84 78 80 87 79 25 5 Engine 2 | . 10 14 10 11 7 . . . . . . . . . . . . . . . . . . . . . Core 4 | . 2 . . . 1 7 7 6 6 7 7 7 6 6 6 6 5 5 5 5 5 4 5 3 . . Leg 18 | . 28 28 43 44 35 36 38 24 . . . . . . . . . . . . . . . . . . Flight 12 | . . . . . . . . 11 38 29 30 30 28 26 30 31 30 23 22 22 22 22 23 25 2 . Device 8 | . 3 14 1 . 14 7 7 2 7 7 7 4 12 13 12 12 10 11 11 12 16 16 15 10 6 . Storage 7 | . 14 14 11 11 9 7 7 7 7 7 7 7 6 6 6 6 6 5 5 5 5 5 5 5 . . Processor 4 | . . . . . . 3 7 7 7 7 7 2 2 6 6 6 6 5 5 5 7 11 11 10 3 . Hackware 7 | . . . . . . . . 12 15 15 15 22 16 13 12 12 12 16 16 15 6 7 11 11 5 . Protection 7 | . 4 . 9 11 11 15 15 5 . . . . 5 6 6 6 7 7 2 8 8 6 5 4 . . Energy Gun 3 | . 21 21 11 6 7 5 2 . . . . . . . . . . . . . . . . . . . Energy Cannon 1 | . . . . 5 8 1 . . . . . . . . . . . . . . . . . . . . Ballistic Gun 2 | . 5 6 10 9 1 7 7 1 . . . . . . . . . 3 4 1 . . 3 . . . Ballistic Cannon 1 | . . . . . . . . 3 . . . . . . . . . . . . 3 . . . . . Slashing Weapon 2 | . . . . . . . . 6 7 7 7 7 5 6 6 3 . . . . . . . . . . Piercing Weapon 1 | . . . . . . . . . . . . . . . . 2 6 5 5 5 1 3 5 5 5 5 Peak Build Rating 104 | 6 8 9 23 24 36 40 42 53 43 43 38 39 73 74 70 74 74 100 96 97 97 104 103 87 45 12 Average Rating 50 | 4 6 7 21 23 30 37 41 45 40 38 38 37 60 67 69 70 70 90 92 94 85 91 96 80 33 11 On Entrance 48 | . 6 7 9 23 24 33 40 42 42 40 38 38 37 67 67 70 70 72 90 96 88 87 93 87 36 11 Naked Turns . | . . . . . . . . . . . . . . . . . . . . . . . . . . . Heaviest Build 71 | 12 15 13 24 26 70 71 67 69 23 19 19 19 34 39 27 29 32 45 41 41 53 40 41 34 18 2 Greatest Support 80 | 20 20 20 60 60 60 72 72 80 23 23 19 19 32 32 32 32 37 41 41 41 41 41 41 34 70 3 Greatest Overweight (x) 11 | . . . . . 1 1 . 1 . 1 . . 1 1 . . . 1 . . 11 . 1 4 2 . Average Overweight (x) . | . . . . . . . . . . . . . . . . . . . . . . . . . . . Largest Inventory Capacity 20 | 8 8 8 8 8 20 20 20 20 10 10 10 10 10 10 10 10 10 10 10 10 10 10 10 10 5 5 Average Capacity 12 | 6 8 8 8 8 18 20 20 17 10 10 10 10 10 10 10 10 10 10 10 10 10 10 10 9 5 5 Most Carried 20 | 2 8 8 8 8 20 20 20 20 10 10 10 10 10 10 10 10 10 10 10 10 10 10 10 10 5 5 Average Carried 11 | . 5 7 7 7 14 18 19 16 9 9 10 9 9 9 9 10 9 9 9 9 9 9 9 9 4 4 Final Capacity 20 | 8 8 8 8 8 20 20 20 10 10 10 10 10 10 10 10 10 10 10 10 10 10 10 10 5 5 5 Final Carried 20 | 2 8 8 8 8 20 20 20 10 10 10 10 9 10 10 10 10 9 9 10 10 10 10 10 5 4 5 Class Distribution -------------------- 33% | Mutant 17% | Hacker-Scout 15% | Hacker-Sprinter 15% | Hacker-Mutant 6% | Scavenger-Mutant 4% | Scavenger-Scout 4% | Commander-Scout Dominant Class ---------------- Mutant | -10/Materials Scavenger-Mutant | -10/Mines Mutant | -9/Materials Mutant | -9/Mines Mutant | -8/Materials Mutant | -7/Factory Mutant | -7/Waste Hacker-Mutant | -7/Factory Hacker-Sprinter | -7/Lower Caves Hacker-Sprinter | -7/Lower Caves Hacker-Sprinter | -7/Data Miner Hacker-Sprinter | -6/Proximity Caves Hacker-Sprinter | -6/Factory Hacker-Scout | -6/Lower Caves Hacker-Scout | -6/Lower Caves Hacker-Scout | -6/Zion Hacker-Scout | -5/Proximity Caves Hacker-Scout | -5/Factory Hacker-Scout | -5/Waste Hacker-Scout | -5/Factory Commander-Scout | -5/Extension Scavenger-Scout | -5/Cetus Scavenger-Scout | -5/Archives Hacker-Sprinter | -5/Hub_04(d) Hacker-Mutant | -4/Factory Mutant | -4/Garrison Resources | -11 -10 -10 -9 -9 -8 -7 -7 -7 -7 -7 -7 -6 -6 -6 -6 -6 -5 -5 -5 -5 -5 -5 -5 -5 -4 -4 ----------- Run | Yrd Mat Min Mat Min Mat Fac Was Fac Low Low Dat Pro Fac Low Low Zio Pro Fac Was Fac Ext Cet Arc Hub Fac Gar Matter Collected 4548 | 219 207 16 303 44 255 63 316 1026 62 17 . 64 182 99 30 20 50 30 190 236 583 216 20 40 260 . Remotely . | . . . . . . . . . . . . . . . . . . . . . . . . . . . Salvage Created 5918 | . 475 50 580 186 613 106 260 944 32 18 . 60 341 65 . . 152 33 . 251 568 21 84 123 956 . Parts 331 | . 22 4 36 11 35 8 5 56 5 4 . 2 30 4 . . 7 5 . 15 26 3 7 5 41 . Haulers Intercepted . | . . . . . . . . . . . . . . . . . . . . . . . . . . . Recyclers Shooed 1 | . . . 1 . . . . . . . . . . . . . . . . . . . . . . . Parts Field Recycled . | . . . . . . . . . . . . . . . . . . . . . . . . . . . Retrieved Matter . | . . . . . . . . . . . . . . . . . . . . . . . . . . . Parts Self-Destructed 18 | . . . . . . . . . 3 1 . 6 . 1 . . 7 . . . . . . . . . Prevented 2 | . . . . . . . . . 2 . . . . . . . . . . . . . . . . . Kills | -11 -10 -10 -9 -9 -8 -7 -7 -7 -7 -7 -7 -6 -6 -6 -6 -6 -5 -5 -5 -5 -5 -5 -5 -5 -4 -4 ------- Run | Yrd Mat Min Mat Min Mat Fac Was Fac Low Low Dat Pro Fac Low Low Zio Pro Fac Was Fac Ext Cet Arc Hub Fac Gar Combat Hostiles Destroyed 127 | . 9 3 12 6 15 5 1 24 3 3 . 1 6 2 . . 2 . . 6 11 . 1 1 16 . Melee 26 | . . . . . . . . 10 . 1 . 1 3 . . . 1 . . 2 5 . . 1 2 . Guns 39 | . 9 3 12 2 3 2 . . . . . . . . . . . . . 1 . . 1 . 6 . Cannons 34 | . . . . 2 6 . . 14 3 . . . . 2 . . . . . 1 6 . . . . . AOE 22 | . . . . 2 3 3 1 . . 2 . . 3 . . . . . . 2 . . . . 6 . Classes Destroyed 15 | . 3 1 3 . 1 . 1 2 . . . . . 1 . . 1 . . 1 . . . . 1 . Worker 3 | . . . 2 . . . . . . . . . . . . . . . . . . . . . 1 . Builder 3 | . . . . . . . . . . . . . . . . . . . . 1 . . . . 2 . Recycler 2 | . 1 . . . . . . . . . . . . . . . . . . . . . . . 1 . Carrier 1 | . . . . . . . . . . . . . . . . . . . . . . . . . 1 . Operator 7 | . . . 2 . 1 . . 1 . . . . 1 . . . . . . . . . . 2 . . Watcher 20 | . 3 . 1 . . . . 7 . . . . 4 . . . . 1 . 1 2 1 . . . . Swarmer 44 | . . 3 3 3 4 4 . 4 3 3 . . 3 . . . . . . 3 4 . . . 7 . Grunt 41 | . 9 . 4 3 5 . . 10 . . . 1 . 1 . . . . . 1 3 . 1 1 2 . Duelist 3 | . . . . . 1 . . . . . . . . . . . . . . . 2 . . . . . Sentry 23 | . . . 5 . 5 1 . 5 . . . . 1 . . . . . . 1 2 . . . 3 . Hunter 5 | . . . . . . . . 3 . . . . . . . . 1 . . 1 . . . . . . Programmer 7 | . . . . . . . . 2 . . . . 2 . . . . . . . . . . . 3 . Behemoth 2 | . . . . . . . . . . . . . . . . . 1 . . . . . . . 1 . Compactor 1 | . . . . . . . 1 . . . . . . . . . . . . . . . . . . . Thief 1 | . . . . . . . . . . . . . . 1 . . . . . . . . . . . . Wasp 3 | . . . . . . . 3 . . . . . . . . . . . . . . . . . . . Thug 2 | . . . 1 . . . 1 . . . . . . . . . . . . . . . . . . . Guerrilla 1 | . . . . . . . . . . . . . . . . . . . . . 1 . . . . . Best Kill Streak 8 | . 3 3 4 5 4 4 1 4 3 3 . 1 3 1 . . 1 1 . 3 6 1 1 2 8 . Combat Bots Only 5 | . 2 3 4 5 4 4 1 3 3 3 . 1 3 1 . . 1 . . 3 5 . 1 1 5 . Max Kills in Single Turn 4 | . 2 1 2 2 2 3 2 1 1 1 . 1 2 1 . . 1 1 . 2 1 1 1 1 4 . Gunslinging . | . . . . . . . . . . . . . . . . . . . . . . . . . . . Exploded 4 | . . . . 1 2 3 1 . . 1 . . 2 . . . . . . 2 . . . . 4 . Melee 1 | . . . . . . . . 1 . 1 . 1 1 . . . 1 . . 1 1 . . 1 1 . Uniques/NPCs Destroyed . | . . . . . . . . . . . . . . . . . . . . . . . . . . . Combat | -11 -10 -10 -9 -9 -8 -7 -7 -7 -7 -7 -7 -6 -6 -6 -6 -6 -5 -5 -5 -5 -5 -5 -5 -5 -4 -4 -------- Run | Yrd Mat Min Mat Min Mat Fac Was Fac Low Low Dat Pro Fac Low Low Zio Pro Fac Was Fac Ext Cet Arc Hub Fac Gar Hostile Shots Fired 1206 | . 54 10 48 18 74 43 . 313 5 7 . 28 105 2 . . 33 1 . 46 96 11 . 63 241 8 Missed 450 | . 15 2 17 5 19 22 . 115 3 3 . 13 49 1 . . 14 . . 20 40 5 . 26 79 2 Damage Taken 10898 | . 498 44 333 136 600 169 172 2097 128 85 . 221 496 15 . . 277 32 63 461 885 124 477 1016 2467 102 Core 2841 | . 81 . 44 22 53 26 32 330 20 25 . 123 32 . . . 51 18 . 74 148 . 144 454 1062 102 Absorbed by Shields 139 | . . . . . . . . . . . . . . . . . . . . . 139 . . . . . Reduced by Siege Mode 72 | . . . . . . . . . . . . . . . . . . . . . . . . . 72 . Redirected to Shielding 85 | . . . . . . . . . . . . . . . . . . . . 42 43 . . . . . Ignored by Resistances 3209 | . 145 16 97 41 232 53 53 636 36 24 . 60 149 4 . . 78 9 18 130 280 35 121 273 690 29 Regen/Repaired (Parts) 1111 | . . . . . . . 94 164 . . . . 198 . . . . . 150 2 . . . . 503 . Core Remaining (%) 66 | 100 . 67 . 83 90 . . . . . . 20 . . . . 90 . . . . . . 16 . . Volleys Fired 409 | . 43 4 36 10 32 8 15 84 4 3 . . 3 7 . . . 1 21 21 59 17 3 . 38 . Largest 2 | . 2 2 2 2 2 2 1 1 1 1 . . 1 1 . . . 1 1 1 1 1 1 . 1 . Hottest 113 | . 90 80 80 101 113 88 36 61 61 39 . . 39 61 . . . 35 35 66 66 66 35 . 39 . Shots Fired 528 | . 85 7 70 16 61 14 15 83 4 3 . . 3 7 . . . 1 21 20 61 17 2 . 38 . Gun 299 | . 85 7 70 6 30 12 . 8 . . . . . . . . . 1 21 17 . 6 2 . 34 . Cannon 200 | . . . . 10 30 1 . 75 4 . . . . 7 . . . . . 1 61 11 . . . . Launcher 29 | . . . . . 1 1 15 . . 3 . . 3 . . . . . . 2 . . . . 4 . Special . | . . . . . . . . . . . . . . . . . . . . . . . . . . . Kinetic 321 | . 22 2 32 1 11 6 . 83 4 . . . . 7 . . . 1 21 17 61 17 2 . 34 . Thermal 38 | . 37 . . . . . . . . . . . . . . . . . . 1 . . . . . . Explosive 29 | . . . . . 1 1 15 . . 3 . . 3 . . . . . . 2 . . . . 4 . Electromagnetic 140 | . 26 5 38 15 49 7 . . . . . . . . . . . . . . . . . . . . Robot Hit Streak 28 | . 28 13 17 13 25 14 17 18 3 2 . . . 2 . . . . 11 8 26 15 1 . 19 . Robot Miss Streak 11 | . 1 . 4 2 6 3 1 11 1 1 . . . 1 . . . . 2 2 3 . 1 . 1 . Penetration Max 1 | . . . . . . . . . . . . . . . . . . . . 1 . . . . . . Secondary Targets 4 | . . 1 3 . . . . . . . . . . . . . . . . . . . . . . . Max Gunslinging Chain 1 | . . 1 1 . . . . . . . . . . . . . . . . . . . . . . . Shots Hit Robots 540 | . 72 6 53 13 45 11 14 103 3 3 . 4 23 3 . . 5 1 17 22 71 15 3 6 47 . Core Hits 271 | . 24 3 34 10 22 9 14 39 3 3 . 2 9 2 . . 3 1 . 14 29 5 2 4 39 . Critical Kills 3 | . . . 1 . . . . . . . . . . . . . . . . 1 . . . . 1 . Critical Parts Destroyed 6 | . . . 1 . . . . . . . . . . . . . . . 2 1 . . . . 2 . Critical Strikes 71 | . 5 . 3 . . 1 . 16 . . . 1 3 1 . . 1 . 9 6 16 1 . 2 6 . Burn 5 | . 5 . . . . . . . . . . . . . . . . . . . . . . . . . Destroy 17 | . . . 2 . . . . . . . . . . . . . . . 9 2 . . . . 4 . Blast 21 | . . . . . . . . 10 . . . . . 1 . . . . . . 9 1 . . . . Corrupt 2 | . . . 1 . . 1 . . . . . . . . . . . . . . . . . . . . Sever 10 | . . . . . . . . 6 . . . 1 3 . . . . . . . . . . . . . Impale 16 | . . . . . . . . . . . . . . . . . 1 . . 4 7 . . 2 2 . Melee Attacks 247 | . . . . . . . . 60 . 2 . 10 41 . 2 1 6 3 . 16 27 53 2 7 16 1 Impact . | . . . . . . . . . . . . . . . . . . . . . . . . . . . Slashing 116 | . . . . . . . . 60 . 2 . 10 41 . 2 1 . . . . . . . . . . Piercing 131 | . . . . . . . . . . . . . . . . . 6 3 . 16 27 53 2 7 16 1 Sneak Attacks 9 | . . . . . . . . 2 . . . . 1 . . . . . . 2 2 . . . 2 . Combat Hostiles 4 | . . . . . . . . 1 . . . . . . . . . . . 1 2 . . . . . Follow-up Attacks . | . . . . . . . . . . . . . . . . . . . . . . . . . . . Damage Inflicted 19423 | . 1175 65 1154 384 1139 426 1686 3644 120 375 . 132 1304 109 . . 211 31 149 763 3054 534 216 251 2501 . Guns 4039 | . 941 65 974 83 362 196 . 119 . . . . . . . . . . 149 89 . 129 59 . 873 . Cannons 5117 | . . . . 162 564 . . 1823 120 . . . . 109 . . . . . 31 1930 378 . . . . Explosions 4700 | . 234 . 180 139 213 230 1686 39 . 336 . . 266 . . . . . . 171 . . . . 1206 . Melee 5567 | . . . . . . . . 1663 . 39 . 132 1038 . . . 211 31 . 472 1124 27 157 251 422 . Ramming . | . . . . . . . . . . . . . . . . . . . . . . . . . . . Kinetic 6911 | . 215 12 599 28 126 122 . 1942 120 . . . . 109 . . . . 149 120 1930 507 59 . 873 . Thermal 985 | . 483 . 180 139 47 . . . . . . . . . . . . . . . . . . . 136 . Explosive 3881 | . 149 . . . 166 230 1686 39 . 336 . . 266 . . . . . . 171 . . . . 838 . Electromagnetic 2079 | . 328 53 375 217 800 74 . . . . . . . . . . . . . . . . . . 232 . Impact . | . . . . . . . . . . . . . . . . . . . . . . . . . . . Slashing 2872 | . . . . . . . . 1663 . 39 . 132 1038 . . . . . . . . . . . . . Piercing 2695 | . . . . . . . . . . . . . . . . . 211 31 . 472 1124 27 157 251 422 . Highest Corruption 17 | . . . . . 1 . . 5 5 5 5 5 1 1 1 1 . . . 2 5 5 5 17 11 11 Average Corruption 3 | . . . . . 1 . . 4 5 5 5 5 1 1 1 1 . . . 2 3 5 5 5 7 11 Corruption Purged . | . . . . . . . . . . . . . . . . . . . . . . . . . . . Corruption Blocked . | . . . . . . . . . . . . . . . . . . . . . . . . . . . Effects 130 | . . . . . . . . 59 4 5 . 3 3 3 . . . . . 8 16 12 4 4 8 1 Message Errors 30 | . . . . . . . . 17 . 2 . . 1 . . . . . . 2 2 5 . 1 . . Matter Fused 31 | . . . . . . . . 17 1 2 . . 2 . . . . . . 3 1 . . 1 4 . Heat Flow Errors 15 | . . . . . . . . 6 2 1 . . . . . . . . . . 3 1 . . 1 1 Energy Discharges 19 | . . . . . . . . 6 . . . . . 2 . . . . . . 5 1 2 2 1 . Parts Rejected 1 | . . . . . . . . 1 . . . . . . . . . . . . . . . . . . Parts Fused 1 | . . . . . . . . . . . . . . . . . . . . 1 . . . . . . Data Loss (minor) 19 | . . . . . . . . 9 1 . . 1 . 1 . . . . . 1 2 4 . . . . Data Loss (major) 4 | . . . . . . . . . . . . 2 . . . . . . . . 1 1 . . . . Misfires 4 | . . . . . . . . 1 . . . . . . . . . . . . 2 . . . 1 . Alerts 1 | . . . . . . . . . . . . . . . . . . . . . . . 1 . . . Weapon Failures 5 | . . . . . . . . 2 . . . . . . . . . . . 1 . . 1 . 1 . Overload Shots . | . . . . . . . . . . . . . . . . . . . . . . . . . . . Overflow Damage 887 | . 4 . 36 . 3 . 36 266 . 15 . . 177 . . . . . . 36 95 21 42 14 142 . Projectiles 109 | . . . . . 3 . . 77 . . . . . . . . . . . . 29 . . . . . Explosions 211 | . 4 . 36 . . . 36 41 . 15 . . 51 . . . . . . . . . . . 28 . Melee 567 | . . . . . . . . 148 . . . . 126 . . . . . . 36 66 21 42 14 114 . Knockbacks 23 | . . . . . . . . 12 . . . . . . . . . . . . 11 . . . . . Impact . | . . . . . . . . . . . . . . . . . . . . . . . . . . . Kinetic 23 | . . . . . . . . 12 . . . . . . . . . . . . 11 . . . . . Secondary . | . . . . . . . . . . . . . . . . . . . . . . . . . . . Self-Inflicted Damage 424 | . 117 . 25 42 71 . 40 91 . 38 . . . . . . . . . . . . . . . . Shots 13 | . 3 . 1 2 2 . 3 1 . 1 . . . . . . . . . . . . . . . . Rammed . | . . . . . . . . . . . . . . . . . . . . . . . . . . . Targets Rammed . | . . . . . . . . . . . . . . . . . . . . . . . . . . . Kicked . | . . . . . . . . . . . . . . . . . . . . . . . . . . . Crushed . | . . . . . . . . . . . . . . . . . . . . . . . . . . . Highest Temperature 362 | . 282 18 51 207 305 90 . 331 362 233 . 5 30 69 . . 40 20 . 20 290 191 . 3 217 104 Average Temperature 70 | . 84 12 14 74 132 34 . 74 74 59 . 3 8 28 . . 16 8 . 6 98 108 . 3 84 61 Received Heat Transfer 2529 | . 288 . 183 15 306 42 . 735 . . . 66 168 9 . . 48 9 . 36 225 48 . 108 243 . Effects 4 | . . . . . . . . 2 1 . . . . . . . . . . . . . . . 1 . Shutdowns 1 | . . . . . . . . . 1 . . . . . . . . . . . . . . . . . Energy Bleed 2 | . . . . . . . . 2 . . . . . . . . . . . . . . . . . . Interference 1 | . . . . . . . . . . . . . . . . . . . . . . . . . 1 . Siege Activations 1 | . . . . . . . . . . . . . . . . . . . . . . . . . 1 . Total Turns 48 | . . . . . . . . . . . . . . . . . . . . . . . . . 48 . Longest Duration 48 | . . . . . . . . . . . . . . . . . . . . . . . . . 48 . Robots Corrupted 3 | . . . . . 3 . . . . . . . . . . . . . . . . . . . . . Combat Hostiles 3 | . . . . . 3 . . . . . . . . . . . . . . . . . . . . . Parts Fried 18 | . 2 . . . 13 1 . . . . . . . . . . . . . . 1 . . . 1 . Impact Corruptions . | . . . . . . . . . . . . . . . . . . . . . . . . . . . Robots Melted . | . . . . . . . . . . . . . . . . . . . . . . . . . . . Combat Hostiles . | . . . . . . . . . . . . . . . . . . . . . . . . . . . Parts Melted 4 | . 2 . . . . . . . . . . . . . . . . . . 1 . . . . 1 . Heat Transferred 2254 | . 1704 . 250 150 50 . . . . . . . . . . . . . . . . . . . 100 . Parts Sabotaged . | . . . . . . . . . . . . . . . . . . . . . . . . . . . Parts Stolen . | . . . . . . . . . . . . . . . . . . . . . . . . . . . Parts Stripped . | . . . . . . . . . . . . . . . . . . . . . . . . . . . Power Chain Reactions 8 | . 3 . 2 2 1 . . . . . . . . . . . . . . . . . . . . . Alert | -11 -10 -10 -9 -9 -8 -7 -7 -7 -7 -7 -7 -6 -6 -6 -6 -6 -5 -5 -5 -5 -5 -5 -5 -5 -4 -4 ------- Run | Yrd Mat Min Mat Min Mat Fac Was Fac Low Low Dat Pro Fac Low Low Zio Pro Fac Was Fac Ext Cet Arc Hub Fac Gar Peak Influence 1115 | . 184 174 394 227 245 212 143 502 . . . . 349 . . . . 295 213 762 1115 463 282 114 283 153 Initial 450 | . . 57 57 63 8 76 61 . . . . . 47 . . . . 33 85 131 321 450 85 64 5 103 Average 242 | . 85 86 269 94 78 177 73 245 . . . . 162 . . . . 182 177 419 694 399 187 59 86 113 Maximum Alert Level 4 | . . . 1 1 1 1 . 2 . . . . 1 . . . . 1 1 3 4 2 1 . 1 . Low Security (%) 50 | 100 100 100 23 72 94 38 100 35 . . . . 57 . . . . 39 38 33 . . 40 100 91 100 Level 1 32 | . . . 76 27 5 61 . 54 . . . . 42 . . . . 60 61 10 12 26 59 . 8 . Level 2 12 | . . . . . . . . 10 . . . . . . . . . . . 36 43 73 . . . . Level 3 5 | . . . . . . . . . . . . . . . . . . . . 18 43 . . . . . Level 4 . | . . . . . . . . . . . . . . . . . . . . . . . . . . . Level 5 . | . . . . . . . . . . . . . . . . . . . . . . . . . . . High Security . | . . . . . . . . . . . . . . . . . . . . . . . . . . . Max Security . | . . . . . . . . . . . . . . . . . . . . . . . . . . . Squads Dispatched 45 | . 2 . 1 . 3 1 . 16 . . . . 4 . . . . 2 . 9 3 1 . 1 2 . Investigation 24 | . 2 . . . 1 . . 9 . . . . 4 . . . . 2 . 4 1 1 . . . . Extermination 6 | . . . . . . 1 . 4 . . . . . . . . . . . 1 . . . . . . Reinforcement 6 | . . . 1 . 2 . . 1 . . . . . . . . . . . 1 . . . 1 . . Assault 3 | . . . . . . . . . . . . . . . . . . . . 1 2 . . . . . Garrison 6 | . . . . . . . . 2 . . . . . . . . . . . 2 . . . . 2 . Intercept . | . . . . . . . . . . . . . . . . . . . . . . . . . . . Searches Triggered . | . . . . . . . . . . . . . . . . . . . . . . . . . . . Data Miner Redirects 3 | . . . . . . . . . . . . . . . . . . 2 . . 1 . . . . . Construction Impeded 1 | . . . . . . . . . . . . . . . . . . . . 1 . . . . . . Haulers Reinforced . | . . . . . . . . . . . . . . . . . . . . . . . . . . . Active Scanning Responses . | . . . . . . . . . . . . . . . . . . . . . . . . . . . Cargo Convoy Interrupts . | . . . . . . . . . . . . . . . . . . . . . . . . . . . Stealth | -11 -10 -10 -9 -9 -8 -7 -7 -7 -7 -7 -7 -6 -6 -6 -6 -6 -5 -5 -5 -5 -5 -5 -5 -5 -4 -4 --------- Run | Yrd Mat Min Mat Min Mat Fac Was Fac Low Low Dat Pro Fac Low Low Zio Pro Fac Was Fac Ext Cet Arc Hub Fac Gar Distress Signals 16 | . 1 . 3 . 1 . . 3 . . . . . . . . . . . 1 1 1 . 2 3 . Communications Jammed . | . . . . . . . . . . . . . . . . . . . . . . . . . . . Distress Signals . | . . . . . . . . . . . . . . . . . . . . . . . . . . . Times Spotted 321 | . 13 3 23 7 18 5 6 71 3 4 . 7 26 2 . . 7 2 6 13 34 8 1 26 34 2 Peak Tracking Total 18 | . 3 2 4 5 4 4 2 7 4 3 . 5 4 1 . . 5 2 2 5 11 5 1 18 14 4 Tactical Retreats 32 | . 2 . . 1 . . . 13 1 1 . 2 3 . . . . 1 . . 3 1 . 2 2 . Traps | -11 -10 -10 -9 -9 -8 -7 -7 -7 -7 -7 -7 -6 -6 -6 -6 -6 -5 -5 -5 -5 -5 -5 -5 -5 -4 -4 ------- Run | Yrd Mat Min Mat Min Mat Fac Was Fac Low Low Dat Pro Fac Low Low Zio Pro Fac Was Fac Ext Cet Arc Hub Fac Gar Traps Triggered 16 | . . . 2 . 2 1 . 5 1 . . . . . . . . 2 . 2 1 . . . . . Indirectly . | . . . . . . . . . . . . . . . . . . . . . . . . . . . Trap Hack Attempts . | . . . . . . . . . . . . . . . . . . . . . . . . . . . Triggered . | . . . . . . . . . . . . . . . . . . . . . . . . . . . Disarmed . | . . . . . . . . . . . . . . . . . . . . . . . . . . . Reprogrammed 4 | . . . . . . . . . . . . . . . . . . . . 4 . . . . . . Reused 1 | . . . . . . . . . . . . . . . . . . . . 1 . . . . . . Traps Extracted . | . . . . . . . . . . . . . . . . . . . . . . . . . . . Installed . | . . . . . . . . . . . . . . . . . . . . . . . . . . . Triggered 3 | . . . . . . . . . 1 . . . . . 1 . . . . 1 . . . . . . Machines | -11 -10 -10 -9 -9 -8 -7 -7 -7 -7 -7 -7 -6 -6 -6 -6 -6 -5 -5 -5 -5 -5 -5 -5 -5 -4 -4 ---------- Run | Yrd Mat Min Mat Min Mat Fac Was Fac Low Low Dat Pro Fac Low Low Zio Pro Fac Was Fac Ext Cet Arc Hub Fac Gar Machines Disabled 25 | . 2 . 2 1 2 . . 7 . . . . . . . . . . . . 4 2 . . 4 1 Max in Single Turn 4 | . 1 . 2 1 1 . . 4 . . . . . . . . . . . . 1 1 . . 3 1 Garrison Access 8 | . . . . . . 1 . 2 . . . . 3 . . . . 1 . 1 . . . . . . Garrison Relay 1 | . . . . . . . . . . . . . . . . . . . . . . . . . . 1 Network Hub 2 | . . . . . . . . . . . . . . . . . . . . . . . . 2 . . Machines Repaired . | . . . . . . . . . . . . . . . . . . . . . . . . . . . Machines Dismantled . | . . . . . . . . . . . . . . . . . . . . . . . . . . . Machines Sabotaged . | . . . . . . . . . . . . . . . . . . . . . . . . . . . Overloaded Fab Kills . | . . . . . . . . . . . . . . . . . . . . . . . . . . . Hacking | -11 -10 -10 -9 -9 -8 -7 -7 -7 -7 -7 -7 -6 -6 -6 -6 -6 -5 -5 -5 -5 -5 -5 -5 -5 -4 -4 --------- Run | Yrd Mat Min Mat Min Mat Fac Was Fac Low Low Dat Pro Fac Low Low Zio Pro Fac Was Fac Ext Cet Arc Hub Fac Gar Machines Accessed 93 | . 4 1 6 . 1 1 . 28 . 1 4 . 21 . . 1 . 5 . 6 5 2 . 3 4 . Terminals 52 | . 3 . 5 . 1 . . 16 . 1 . . 10 . . . . 1 . 3 5 2 . 3 2 . Fabricators 11 | . . . . . . . . 5 . . . . 4 . . . . 1 . 1 . . . . . . Repair Stations 5 | . . . . . . . . 1 . . . . 2 . . . . 1 . . . . . . 1 . Recycling Units 5 | . 1 . 1 . . . . 1 . . . . 1 . . . . 1 . . . . . . . . Scanalyzers 5 | . . . . . . . . 3 . . . . 1 . . . . . . 1 . . . . . . Garrison Access 9 | . . . . . . 1 . 2 . . . . 3 . . . . 1 . 1 . . . . 1 . Total Hacks 324 | . 11 1 23 . 7 2 . 83 . 2 31 . 72 . . 4 . 14 . 28 9 8 . 17 12 . Successful 213 | . 4 1 9 . 4 1 . 49 . 2 31 . 43 . . 4 . 10 . 23 4 4 . 16 8 . Failed 111 | . 7 . 14 . 3 1 . 34 . . . . 29 . . . . 4 . 5 5 4 . 1 4 . Catastrophic 14 | . 1 . 2 . . . . 7 . . . . . . . . . . . . 1 1 . . 2 . Database Lockouts . | . . . . . . . . . . . . . . . . . . . . . . . . . . . Manual 169 | . 10 . 13 . 4 . . 58 . . . . 31 . . . . 5 . 17 8 2 . 15 6 . Terminals 202 | . 10 . 21 . 7 . . 53 . 2 . . 44 . . . . 1 . 21 9 8 . 17 9 . Fabricators 28 | . . . . . . . . 12 . . . . 10 . . . . 3 . 3 . . . . . . Repair Stations 12 | . . . . . . . . 2 . . . . 6 . . . . 2 . . . . . . 2 . Recycling Units 14 | . 1 . 2 . . . . 5 . . . . 2 . . . . 4 . . . . . . . . Scanalyzers 16 | . . . . . . . . 8 . . . . 5 . . . . . . 3 . . . . . . Garrison Access 16 | . . . . . . 2 . 3 . . . . 5 . . . . 4 . 1 . . . . 1 . Terminal Hacks 114 | . 2 1 7 . 3 . . 13 . 2 31 . 16 . . 4 . . . 13 3 4 . 10 5 . Record 17 | . . . . . . . . . . 2 11 . . . . . . . . . . 4 . . . . Part Schematic 25 | . 1 . 2 . . . . 2 . . 11 . 3 . . 4 . . . 2 . . . . . . Robot Schematic 6 | . . . . . . . . . . . 6 . . . . . . . . . . . . . . . Robot Analysis 2 | . . . 1 . . . . . . . . . . . . . . . . . 1 . . . . . Prototype ID Bank 6 | . . . 2 . . . . . . . 3 . . . . . . . . . . . . 1 . . Open Door 1 | . . 1 . . . . . . . . . . . . . . . . . . . . . . . . Level Access Points 1 | . . . . . . . . . . . . . . . . . . . . . . . . 1 . . Branch Access Points 7 | . . . 1 . 1 . . 1 . . . . 1 . . . . . . 1 . . . 1 1 . Machine Index 2 | . . . . . . . . . . . . . 1 . . . . . . . . . . 1 . . Terminal Index 8 | . 1 . . . 1 . . 1 . . . . 1 . . . . . . 1 1 . . 1 1 . Fabricator Index 3 | . . . . . . . . 1 . . . . . . . . . . . 1 . . . . 1 . Repair Station Index 1 | . . . . . . . . . . . . . . . . . . . . 1 . . . . . . Scanalyzer Index 2 | . . . . . . . . 1 . . . . . . . . . . . 1 . . . . . . Garrison Index 2 | . . . . . . . . . . . . . 1 . . . . . . 1 . . . . . . Alert Level 3 | . . . . . . . . . . . . . 1 . . . . . . 1 . . . 1 . . Unreport Threat 6 | . . . . . . . . 2 . . . . 2 . . . . . . . . . . 1 1 . Reprogram Traps 1 | . . . . . . . . . . . . . . . . . . . . 1 . . . . . . Dispatch Records 7 | . . . . . . . . 1 . . . . 2 . . . . . . 1 1 . . 1 1 . Recall Investigation 5 | . . . . . . . . 1 . . . . 3 . . . . . . 1 . . . . . . Recall Extermination 2 | . . . . . . . . 2 . . . . . . . . . . . . . . . . . . Recall Reinforcements 3 | . . . 1 . . . . 1 . . . . . . . . . . . . . . . 1 . . Registered Components 1 | . . . . . 1 . . . . . . . . . . . . . . . . . . . . . Registered Prototypes 1 | . . . . . . . . . . . . . 1 . . . . . . . . . . . . . Zone Layout 2 | . . . . . . . . . . . . . . . . . . . . 1 . . . 1 . . Fabricator Hacks 26 | . . . . . . . . 11 . . . . 9 . . . . 3 . 3 . . . . . . Network Status 4 | . . . . . . . . 1 . . . . 1 . . . . 1 . 1 . . . . . . Load Schematic 11 | . . . . . . . . 5 . . . . 4 . . . . 1 . 1 . . . . . . Build 11 | . . . . . . . . 5 . . . . 4 . . . . 1 . 1 . . . . . . Repair Station Hacks 11 | . . . . . . . . 2 . . . . 5 . . . . 2 . . . . . . 2 . Scan Component 5 | . . . . . . . . 1 . . . . 2 . . . . 1 . . . . . . 1 . Repair 5 | . . . . . . . . 1 . . . . 2 . . . . 1 . . . . . . 1 . Refit 1 | . . . . . . . . . . . . . 1 . . . . . . . . . . . . . Recycling Unit Hacks 4 | . 1 . . . . . . 1 . . . . 1 . . . . 1 . . . . . . . . Retrieve Components 4 | . 1 . . . . . . 1 . . . . 1 . . . . 1 . . . . . . . . Scanalyzer 12 | . . . . . . . . 6 . . . . 4 . . . . . . 2 . . . . . . Insert Component 8 | . . . . . . . . 4 . . . . 2 . . . . . . 2 . . . . . . Analyze 4 | . . . . . . . . 2 . . . . 2 . . . . . . . . . . . . . Garrison Access Hacks 8 | . . . . . . 1 . 2 . . . . 3 . . . . . . 1 . . . . 1 . Unlock Access 1 | . . . . . . . . . . . . . . . . . . . . . . . . . 1 . Seal Access 7 | . . . . . . 1 . 2 . . . . 3 . . . . . . 1 . . . . . . Unauthorized Hacks 38 | . 1 . 2 . 1 . . 14 . . . . 5 . . . . 4 . 4 1 . . 6 . . Terminals 30 | . 1 . 2 . 1 . . 10 . . . . 5 . . . . . . 4 1 . . 6 . . Track 3 | . . . . . . . . 2 . . . . . . . . . . . . . . . 1 . . Assimilate 10 | . . . . . . . . 3 . . . . 4 . . . . . . 1 1 . . 1 . . Botnet 13 | . 1 . 2 . 1 . . 4 . . . . 1 . . . . . . 2 . . . 2 . . Disrupt 1 | . . . . . . . . . . . . . . . . . . . . . . . . 1 . . Operators 3 | . . . . . . . . 1 . . . . . . . . . . . 1 . . . 1 . . Fabricators . | . . . . . . . . . . . . . . . . . . . . . . . . . . . Repair Stations . | . . . . . . . . . . . . . . . . . . . . . . . . . . . Recycling Units 7 | . . . . . . . . 4 . . . . . . . . . 3 . . . . . . . . Monitor 1 | . . . . . . . . 1 . . . . . . . . . . . . . . . . . . Reject 2 | . . . . . . . . 1 . . . . . . . . . 1 . . . . . . . . Recyclers 2 | . . . . . . . . 1 . . . . . . . . . 1 . . . . . . . . Mask 2 | . . . . . . . . 1 . . . . . . . . . 1 . . . . . . . . Scanalyzers . | . . . . . . . . . . . . . . . . . . . . . . . . . . . Garrison Access 1 | . . . . . . . . . . . . . . . . . . 1 . . . . . . . . Jam 1 | . . . . . . . . . . . . . . . . . . 1 . . . . . . . . Data Cores Recovered 5 | . . . 1 . . . . 2 . . . . 1 . . . . . . . . . . 1 . . Used 1 | . . . . . . . . 1 . . . . . . . . . . . . . . . . . . Hacking Detections 72 | . 3 . 6 . 1 1 . 24 . 1 . . 18 . . . . 4 . 5 5 1 . 2 1 . Full Trace Events 17 | . 2 . 1 . . . . 7 . . . . 4 . . . . 1 . 1 . 1 . . . . Feedback Events 1 | . . . . . . . . 1 . . . . . . . . . . . . . . . . . . Hackware Fried 1 | . . . . . . . . 1 . . . . . . . . . . . . . . . . . . Feedback Blocked . | . . . . . . . . . . . . . . . . . . . . . . . . . . . Robot Schematics Acquired 9 | . . . . . . . . . . . 6 . . . . 3 . . . . . . . . . . Robots Built . | . . . . . . . . . . . . . . . . . . . . . . . . . . . Authchips . | . . . . . . . . . . . . . . . . . . . . . . . . . . . Time . | . . . . . . . . . . . . . . . . . . . . . . . . . . . Total Robot Build Rating . | . . . . . . . . . . . . . . . . . . . . . . . . . . . Part Schematics Acquired 41 | . 1 . 2 . . . . 4 . . 11 . 4 . . 17 . . . 2 . . . . . . Parts Built 15 | . . . . . . . . 6 . . . . 5 . . . . 2 . 2 . . . . . . Authchips . | . . . . . . . . . . . . . . . . . . . . . . . . . . . Time 910 | . . . . . . . . 378 . . . . 320 . . . . 117 . 95 . . . . . . Total Part Build Rating 70 | . . . . . . . . 18 . . . . 28 . . . . 14 . 10 . . . . . . Parts Repaired 4 | . . . . . . . . 1 . . . . 2 . . . . . . . . . . . 1 . Time 289 | . . . . . . . . 86 . . . . 70 . . . . 25 . . . . . . 108 . Parts Recycled . | . . . . . . . . . . . . . . . . . . . . . . . . . . . Recycled Matter . | . . . . . . . . . . . . . . . . . . . . . . . . . . . Retrieved Matter . | . . . . . . . . . . . . . . . . . . . . . . . . . . . Retrieved Components 16 | . 2 . . . . . . 9 . . . . 2 . . . . 3 . . . . . . . . Parts Scanalyzed 5 | . . . . . . . . 2 . . . . 2 . . . . . . 1 . . . . . . Part Schematics Acquired 4 | . . . . . . . . 2 . . . . 2 . . . . . . . . . . . . . Parts Damaged . | . . . . . . . . . . . . . . . . . . . . . . . . . . . Bothacking | -11 -10 -10 -9 -9 -8 -7 -7 -7 -7 -7 -7 -6 -6 -6 -6 -6 -5 -5 -5 -5 -5 -5 -5 -5 -4 -4 ------------ Run | Yrd Mat Min Mat Min Mat Fac Was Fac Low Low Dat Pro Fac Low Low Zio Pro Fac Was Fac Ext Cet Arc Hub Fac Gar Used RIF Installer . | . . . . . . . . . . . . . . . . . . . . . . . . . . . Robots Hacked . | . . . . . . . . . . . . . . . . . . . . . . . . . . . Non-combat . | . . . . . . . . . . . . . . . . . . . . . . . . . . . Combat . | . . . . . . . . . . . . . . . . . . . . . . . . . . . Robot Hacks Applied . | . . . . . . . . . . . . . . . . . . . . . . . . . . . Relay Couplers Released 3 | . . . . . . . . . . . . . . . . . . . . . . . . . . 3 Machine Destruction 3 | . . . . . . . . . . . . . . . . . . . . . . . . . . 3 Fabnet Peak Effective % . | . . . . . . . . . . . . . . . . . . . . . . . . . . . Robots Rewired 13 | . . . . . . . . . . . . . 1 . . . . . . . 12 . . . . . Allies Hacked 1 | . . . . . . . . . . . . . 1 . . . . . . . . . . . . . Hacks Repelled . | . . . . . . . . . . . . . . . . . . . . . . . . . . . Allies | -11 -10 -10 -9 -9 -8 -7 -7 -7 -7 -7 -7 -6 -6 -6 -6 -6 -5 -5 -5 -5 -5 -5 -5 -5 -4 -4 -------- Run | Yrd Mat Min Mat Min Mat Fac Was Fac Low Low Dat Pro Fac Low Low Zio Pro Fac Was Fac Ext Cet Arc Hub Fac Gar Total Allies 81 | . . 2 . . . . 20 3 . . . 1 5 . . . . . 19 1 24 5 . 1 . . Largest Group 19 | . . 2 2 . . . 19 10 . . . 1 2 . . . . . 19 15 14 13 5 1 . . Highest-Rated Group 684 | . . 46 46 . . . 465 289 . . . 96 58 . . . . . 684 569 515 480 480 10 . . Highest-Rated Ally 159 | . . 31 31 . . . 35 35 . . . 96 32 . . . . . 50 50 159 146 96 10 . . Total Orders 3 | . . . . . . . . . . . . . . . . . . . . . . 2 1 . . . STAY 1 | . . . . . . . . . . . . . . . . . . . . . . 1 . . . . FOLLOW 1 | . . . . . . . . . . . . . . . . . . . . . . 1 . . . . GUARD 1 | . . . . . . . . . . . . . . . . . . . . . . . 1 . . . Ally Attacks 736 | . . 7 17 . . . 144 88 . . . 6 11 . . . . . 88 106 165 83 21 . . . Total Damage 21995 | . . 104 214 . . . 5478 2009 . . . 187 458 . . . . . 4298 2911 3892 1731 713 . . . Kills 109 | . . 2 4 . . . 8 18 . . . 2 4 . . . . . 11 23 25 7 5 . . . Allies Corrupted . | . . . . . . . . . . . . . . . . . . . . . . . . . . . Allies Melted . | . . . . . . . . . . . . . . . . . . . . . . . . . . . Intel | -11 -10 -10 -9 -9 -8 -7 -7 -7 -7 -7 -7 -6 -6 -6 -6 -6 -5 -5 -5 -5 -5 -5 -5 -5 -4 -4 ------- Run | Yrd Mat Min Mat Min Mat Fac Was Fac Low Low Dat Pro Fac Low Low Zio Pro Fac Was Fac Ext Cet Arc Hub Fac Gar Robot Analysis Total 2 | . . . 1 . . . . . . . . . . . . . . . . . 1 . . . . . Derelict Logs Recovered 7 | . . . . 1 . . . . . 1 . 1 . 2 1 . 1 . . . . . . . . . Drone Launches . | . . . . . . . . . . . . . . . . . . . . . . . . . . . Drone Recoveries . | . . . . . . . . . . . . . . . . . . . . . . . . . . . Exploration | -11 -10 -10 -9 -9 -8 -7 -7 -7 -7 -7 -7 -6 -6 -6 -6 -6 -5 -5 -5 -5 -5 -5 -5 -5 -4 -4 ------------- Run | Yrd Mat Min Mat Min Mat Fac Was Fac Low Low Dat Pro Fac Low Low Zio Pro Fac Was Fac Ext Cet Arc Hub Fac Gar Turns Passed 12328 | 56 638 225 804 708 950 383 466 2723 127 109 24 157 829 183 125 250 179 289 170 707 1047 480 104 91 455 49 Spaces Moved 15785 | 45 392 168 541 513 434 277 311 3048 295 301 93 475 2043 297 380 810 427 702 219 1175 1061 823 172 181 518 84 Core 275 | 14 . . . . . . . . . . . . . . . . . . . . 12 . . 2 163 84 Treads 2 | . . . . . . . . . . . . . . . . . . . . . . . . . 2 . Legs 3975 | 31 392 168 541 513 434 277 311 1308 . . . . . . . . . . . . . . . . . . Wheels . | . . . . . . . . . . . . . . . . . . . . . . . . . . . Hover . | . . . . . . . . . . . . . . . . . . . . . . . . . . . Flight 11533 | . . . . . . . . 1740 295 301 93 475 2043 297 380 810 427 702 219 1175 1049 823 172 179 353 . Fastest Speed 23 | 50 120 120 120 120 120 114 114 23 23 23 26 26 24 29 29 29 26 26 31 31 31 31 30 30 40 50 Average Speed 53 | 98 120 120 120 120 172 124 114 64 23 27 26 26 27 29 29 29 27 28 31 31 38 31 36 31 44 50 Slowest Speed 600 | 120 120 120 120 120 190 187 114 213 23 99 26 26 102 102 34 29 29 107 31 31 600 31 107 250 160 50 Overloaded Moves . | . . . . . . . . . . . . . . . . . . . . . . . . . . . Propulsion Burnouts . | . . . . . . . . . . . . . . . . . . . . . . . . . . . Robots Hopped 44 | . . . . . . . . 13 1 . . . 9 . . . . 2 . 11 5 . . 2 1 . Cave-ins Triggered . | . . . . . . . . . . . . . . . . . . . . . . . . . . . Exploration Rate (%) 54 | 3 63 43 52 95 35 8 96 68 49 47 69 71 48 53 53 82 65 13 89 23 95 88 94 37 17 16 Regions Visited 26 Branch Regions 14 Pre-discovered Areas 5 | . . . . 1 . . . . . . 1 . . 1 . 2 . . . . . . . . . . Known Exits Taken 13 | . . . 1 . . . . 1 . . . . 1 1 1 1 1 . . 1 1 1 1 1 1 . Unknown Exits Taken 9 | 1 1 1 . 1 1 . . . 1 1 1 1 . . . . . . . . . . . . . . Scrap Searched 19 | . . . . 3 . . . . . . . 2 . 2 5 4 3 . . . . . . . . . Spaces Dug 45 | . . . . . . . . 11 . . . 4 17 2 1 . . 2 . 5 1 . . . 2 . Terrain Destroyed 383 | . 45 . 34 10 43 9 45 78 2 21 . 4 39 5 1 . . 2 . 25 9 1 . . 10 . Melee 38 | . . . . . . . . 7 . . . 4 17 . 1 . . 2 . 5 . . . . 2 . Projectile 39 | . . . . . . . . 20 2 . . . . 5 . . . . . . 9 1 . . 2 . AOE 306 | . 45 . 34 10 43 9 45 51 . 21 . . 22 . . . . . . 20 . . . . 6 . Terrain Rammed . | . . . . . . . . . . . . . . . . . . . . . . . . . . . Walls Destroyed . | . . . . . . . . . . . . . . . . . . . . . . . . . . . Machines Disabled . | . . . . . . . . . . . . . . . . . . . . . . . . . . . Actions | -11 -10 -10 -9 -9 -8 -7 -7 -7 -7 -7 -7 -6 -6 -6 -6 -6 -5 -5 -5 -5 -5 -5 -5 -5 -4 -4 --------- Run | Yrd Mat Min Mat Min Mat Fac Was Fac Low Low Dat Pro Fac Low Low Zio Pro Fac Was Fac Ext Cet Arc Hub Fac Gar Total 18639 | 54 472 185 629 590 570 300 408 3614 347 319 92 492 2239 389 389 823 475 784 297 1459 1589 950 207 200 678 88 Wait 1735 | . 20 9 17 58 62 5 70 337 46 11 . 5 110 74 3 9 35 51 51 236 366 45 22 7 86 . Move 15680 | 44 391 167 540 512 433 277 310 3023 292 300 92 474 2026 296 379 809 426 698 218 1154 1050 822 171 176 516 84 Hop 38 | . . . . . . . . 11 1 . . . 7 . . . . 2 . 9 5 . . 2 1 . Pick Up 85 | 2 3 2 5 2 8 2 4 18 . . . . 11 3 1 . . 9 2 4 2 . 2 . 4 1 Fast Attach 77 | 6 6 . 8 3 8 1 . 10 1 1 . 1 7 . 2 2 1 1 1 2 6 3 . 1 4 2 Attach 69 | 1 3 1 2 1 4 2 . 15 1 1 . 1 5 3 1 . 3 4 . 4 2 2 4 3 6 . Detach 48 | 1 4 . 1 . 4 . . 8 1 1 . 1 4 3 . . 2 . . 5 1 2 2 4 4 . Swap 72 | . 2 . 8 . 13 4 4 16 1 . . . 3 . . . 2 5 3 3 4 3 1 . . . Drop 108 | . . 2 12 4 6 1 5 32 . . . . 13 3 1 2 . 10 1 5 5 3 . . 3 . Fire 409 | . 43 4 36 10 32 8 15 84 4 3 . . 3 7 . . . 1 21 21 59 17 3 . 38 . Melee 247 | . . . . . . . . 60 . 2 . 10 41 . 2 1 6 3 . 16 27 53 2 7 16 1 Ram . | . . . . . . . . . . . . . . . . . . . . . . . . . . . Kick . | . . . . . . . . . . . . . . . . . . . . . . . . . . . Crush . | . . . . . . . . . . . . . . . . . . . . . . . . . . . Escape Stasis 15 | . . . . . . . . . . . . . . . . . . . . . 15 . . . . . Rewire 56 | . . . . . . . . . . . . . 9 . . . . . . . 47 . . . . . Trap . | . . . . . . . . . . . . . . . . . . . . . . . . . . . Miscellaneous . | . . . . . . . . . . . . . . . . . . . . . . . . . . . Route ------- -11/Scrapyard -10/Materials (discovered 4 exits: *Mat x2 / *Min x2) -10/Mines -9/Materials (discovered 3 exits: *Mat / *Min x2) -9/Mines (discovered 2 exits: *Mat x2) -8/Materials -7/Factory -7/Waste -7/Factory (discovered 6 exits: *Fac x2 / Sto x2 / *Low x2) -7/Lower Caves -7/Lower Caves -7/Data Miner -6/Proximity Caves -6/Factory (discovered 3 exits: *Fac / *Low x2) -6/Lower Caves -6/Lower Caves -6/Zion -5/Proximity Caves -5/Factory (discovered 2 exits: *Fac / Ext) -5/Waste -5/Factory (discovered 5 exits: *Fac / Upp x2 / *Ext x2) -5/Extension (discovered 3 exits: *Fac x2 / *Cet) -5/Cetus (discovered 2 exits: *Fac / *Arc) -5/Archives (discovered 3 exits: *Fac / *Hub x2) -5/Hub_04(d) (discovered 4 exits: *Fac x4) -4/Factory (discovered 3 exits: Upp x2 / Gar) -4/Garrison History --------- Turn | Location | Event 6 | -11/Scrapyard | Discovered new exit (range 16) 57 | -11/Scrapyard | Entered Materials 60 | -10/Materials | Discovered new exit (range 12) 182 | -10/Materials | Discovered new exit (range 15) 308 | -10/Materials | Build established: Mutant 319 | -10/Materials | Discovered new exit (range 13) 416 | -10/Materials | Lost 3 parts (1p1u1w) 648 | -10/Materials | Discovered new exit (range 7) 695 | -10/Materials | Entered Mines 870 | -10/Mines | Received a Rocket Launcher from a helpful Derelict 881 | -10/Mines | Build established: Scavenger-Mutant 881 | -10/Mines | Discovered new exit (range 16) 905 | -10/Mines | Assembled infested the area 906 | -10/Mines | Found the Drone Emporium 912 | -10/Mines | Found Prototype Device 920 | -10/Mines | Entered Materials 920 | -9/Materials | Accompanied by 2 allies 920 | -9/Materials | Evolved 2 slots: Propulsion x2 925 | -9/Materials | Led the pair of lost Derelicts to an unsafe place 1179 | -9/Materials | Identified exit to Mines 1231 | -9/Materials | Build established: Mutant 1239 | -9/Materials | Discovered new exit (range 3) 1724 | -9/Materials | Entered Mines 1775 | -9/Mines | Discovered new exit (range 5) 2162 | -9/Mines | Discovered new exit (range 9) 2226 | -9/Mines | Learned location of Storage (-7) 2234 | -9/Mines | Found a hidden stash of uninstalled traps 2432 | -9/Mines | Entered Materials 2432 | -8/Materials | Evolved 2 slots: Utility x2 2466 | -8/Materials | Identified Bomb Drone Bay 3158 | -8/Materials | Discovered new exit (range 10) 3382 | -8/Materials | Entered Factory 3382 | -7/Factory | Evolved 2 slots: Propulsion x1, Utility x1 3765 | -7/Factory | Sucked down chute 3765 | -7/Factory | Entered Waste 3766 | -7/Waste | Met a frightened Derelict 3789 | -7/Waste | Found Imp. Powered Armor 3795 | -7/Waste | Spotted C-40 Crusher 3795 | -7/Waste | Spotted C-40 Crusher 3817 | -7/Waste | Warlord forces began an assault 3824 | -7/Waste | Allies destroyed C-40 Crusher 3831 | -7/Waste | Allies destroyed C-40 Crusher 3943 | -7/Waste | Spotted C-40 Crusher 3951 | -7/Waste | Destroyed C-40 Crusher 3958 | -7/Waste | Spotted C-40 Crusher 3959 | -7/Waste | Spotted C-40 Crusher 3968 | -7/Waste | Allies destroyed C-40 Crusher 3973 | -7/Waste | Allies destroyed C-40 Crusher 4003 | -7/Waste | Lost 5 allies 4032 | -7/Waste | Spotted C-40 Crusher 4044 | -7/Waste | Allies destroyed C-40 Crusher 4074 | -7/Waste | Lost 4 allies 4149 | -7/Waste | Discovered new exit (range 13) 4231 | -7/Waste | Entered Factory 4231 | -7/Factory | Accompanied by 10 allies 4554 | -7/Factory | Discovered new exit (range 14) 4560 | -7/Factory | Discovered new exit (range 8) 4710 | -7/Factory | Discovered new exit (range 13) 4793 | -7/Factory | Build established: Scavenger-Mutant 5045 | -7/Factory | Fabricated Imp. VTOL Module? 5076 | -7/Factory | Repaired Broken Hvy. Gauss Cannon 5154 | -7/Factory | Build established: Hacker-Mutant 5383 | -7/Factory | Fabricated Cesium-ion Thruster? 5403 | -7/Factory | Fabricated Imp. VTOL Module? 5882 | -7/Factory | Fabricated Imp. VTOL Module (x1) 6353 | -7/Factory | Hacking Suite fried by hacking feedback 6418 | -7/Factory | Fabricated System Shield (x1) 6458 | -7/Factory | Build established: Hacker-Sprinter 6622 | -7/Factory | Core integrity fell below 50% 6651 | -7/Factory | Identified exit to Storage 6651 | -7/Factory | Identified exit to Lower Caves 6726 | -7/Factory | Discovered new exit (range 15) 6780 | -7/Factory | Garrison activated, responded to threat 6954 | -7/Factory | Entered Lower Caves 7074 | -7/Lower Caves | Discovered new exit (range 10) 7081 | -7/Lower Caves | Entered another Lower Caves area 7167 | -7/Lower Caves | Learned 4 Factory zone layouts 7188 | -7/Lower Caves | Discovered new exit (range 5) 7190 | -7/Lower Caves | Entered Data Miner 7190 | -7/Data Miner | Discovered new exit (range 6) 7195 | -7/Data Miner | Met Data Miner 7201 | -7/Data Miner | Learned location of Section 7 (-2) 7201 | -7/Data Miner | Acquired the access code to Warlord's prototype stash 7205 | -7/Data Miner | Received God Mode back door access code from Data Miner 7214 | -7/Data Miner | Entered Proximity Caves 7232 | -6/Proximity Caves | Learned Factory security intel 7274 | -6/Proximity Caves | Escorted by Enhanced Grunt 7310 | -6/Proximity Caves | Spotted B-75 Beast 7368 | -6/Proximity Caves | Discovered new exit (range 10) 7371 | -6/Proximity Caves | Entered Factory 7371 | -6/Factory | Evolved 2 slots: Utility x2 7372 | -6/Factory | Identified exit to Lower Caves 7535 | -6/Factory | Fabricated Field Propulsion Array? 7538 | -6/Factory | Repaired Chainsword 7630 | -6/Factory | Fabricated Biomechanical Wings? 8012 | -6/Factory | Discovered new exit (range 16) 8066 | -6/Factory | Fabricated Adv. Hacking Suite (x1) 8109 | -6/Factory | Repaired Imp. Powered Armor? 8147 | -6/Factory | Fabricated Adv. Sensor Array? 8200 | -6/Factory | Entered Lower Caves 8213 | -6/Lower Caves | Build established: Hacker-Scout 8223 | -6/Lower Caves | Learned location of Extension (-5) 8381 | -6/Lower Caves | Discovered new exit (range 6) 8382 | -6/Lower Caves | Identified exit to Lower Caves 8383 | -6/Lower Caves | Entered another Lower Caves area 8391 | -6/Lower Caves | Found Alien Artifact 8391 | -6/Lower Caves | Identified Core Expander 8391 | -6/Lower Caves | Installed Core Expander, added new Propulsion slot 8459 | -6/Lower Caves | Learned Factory terminal intel 8488 | -6/Lower Caves | Discovered new exit (range 11) 8491 | -6/Lower Caves | Identified exit to Zion 8508 | -6/Lower Caves | Entered Zion 8517 | -6/Zion | Given A8's code to call for help 8526 | -6/Zion | Discovered new exit (range 16) 8537 | -6/Zion | System corruption cleaned by Quarantine Array 8594 | -6/Zion | Learned location of Quarantine (-2) 8650 | -6/Zion | Found CR-A16's Pointy Stick 8758 | -6/Zion | Identified exit to Proximity Caves 8758 | -6/Zion | Entered Proximity Caves 8823 | -5/Proximity Caves | Spotted B-75 Beast 8831 | -5/Proximity Caves | Revealed the true nature of CR-A16's Pointy Stick 8836 | -5/Proximity Caves | Destroyed B-75 Beast 8859 | -5/Proximity Caves | Learned location of 1 exit from Factory 8934 | -5/Proximity Caves | Discovered new exit (range 15) 8937 | -5/Proximity Caves | Identified exit to Factory 8937 | -5/Proximity Caves | Entered Factory 8937 | -5/Factory | Evolved 2 slots: Utility x2 8938 | -5/Factory | Identified exit to Extension 8939 | -5/Factory | Loaded intel: 26 terminal locations 8970 | -5/Factory | Incoming investigation squad redirected 8979 | -5/Factory | Discovered new exit (range 11) 9022 | -5/Factory | Identified exit to Factory 9068 | -5/Factory | Fabricated Impulse Thruster (x2) 9076 | -5/Factory | Incoming investigation squad redirected 9226 | -5/Factory | Sucked down chute 9226 | -5/Factory | Entered Waste 9233 | -5/Waste | Spotted C-40 Crusher 9236 | -5/Waste | Warlord forces began an assault 9260 | -5/Waste | Allies destroyed C-40 Crusher 9266 | -5/Waste | Spotted C-40 Crusher 9266 | -5/Waste | Spotted C-40 Crusher 9274 | -5/Waste | Allies destroyed C-40 Crusher 9276 | -5/Waste | Allies destroyed C-40 Crusher 9284 | -5/Waste | Spotted C-40 Crusher 9289 | -5/Waste | Allies destroyed C-40 Crusher 9290 | -5/Waste | Spotted C-40 Crusher 9298 | -5/Waste | Allies destroyed C-40 Crusher 9302 | -5/Waste | Lost 5 allies 9305 | -5/Waste | Spotted C-40 Crusher 9310 | -5/Waste | Allies destroyed C-40 Crusher 9333 | -5/Waste | Discovered new exit (range 12) 9346 | -5/Waste | Identified exit to Factory 9396 | -5/Waste | Entered Factory 9396 | -5/Factory | Accompanied by 14 allies 9434 | -5/Factory | Identified exit to Upper Caves 9582 | -5/Factory | Fabricated Adv. Signal Interpreter (x2) 9661 | -5/Factory | Discovered exit to Factory (range 16) 9697 | -5/Factory | Noticed a derelict Sapper rigging charges 9736 | -5/Factory | Lost 3 allies 9935 | -5/Factory | Garrison activated, responded to threat 9996 | -5/Factory | First assault squad dispatched 10103 | -5/Factory | Entered Extension 10103 | -5/Extension | Accompanied by 2 allies 10107 | -5/Extension | Disrupted transfer network 10231 | -5/Extension | Rescued A7 10386 | -5/Extension | Rescued a captive Derelict 10389 | -5/Extension | Rescued a captive Derelict 10408 | -5/Extension | Rescued a captive Derelict 10411 | -5/Extension | Rescued a captive Derelict 10491 | -5/Extension | Rescued a captive Derelict 10492 | -5/Extension | Rescued a captive Derelict 10650 | -5/Extension | Spotted B-75 Beast 10662 | -5/Extension | Allies destroyed B-75 Beast 10675 | -5/Extension | Spotted B-75 Beast 10688 | -5/Extension | Allies destroyed B-75 Beast 10701 | -5/Extension | Discovered exit to Factory (range 3) 10703 | -5/Extension | First assault squad dispatched 10715 | -5/Extension | Lost 4 allies 10835 | -5/Extension | Incoming assault squad redirected 10836 | -5/Extension | Rescued a captive Derelict 10851 | -5/Extension | Rescued a captive Derelict 10852 | -5/Extension | Rescued a captive Derelict 10879 | -5/Extension | Rescued a captive Derelict 11061 | -5/Extension | Discovered new exit (range 16) 11062 | -5/Extension | Discovered exit to Factory (range 15) 11069 | -5/Extension | Identified exit to Cetus 11150 | -5/Extension | Entered Cetus 11150 | -5/Cetus | Accompanied by 13 allies (A7) 11155 | -5/Cetus | Acquired a Cetus Manufacturing Module code from A7 11156 | -5/Cetus | Spotted Cetus Guard 11156 | -5/Cetus | Spotted Cetus Guard 11164 | -5/Cetus | Spotted Cetus Guard 11165 | -5/Cetus | Spotted Cetus Guard 11168 | -5/Cetus | Extracted ID and sensor layout for unrecognized location from A7's data core 11176 | -5/Cetus | Discovered exit to Factory (range 15) 11190 | -5/Cetus | Allies destroyed Cetus Guard 11197 | -5/Cetus | Allies destroyed Cetus Guard 11198 | -5/Cetus | Allies destroyed Cetus Guard 11223 | -5/Cetus | Started Cetus Manufacturing Module 11225 | -5/Cetus | Lost 8 allies 11248 | -5/Cetus | Manufactured an Enhanced Grunt 11273 | -5/Cetus | Manufactured an Enhanced Grunt 11292 | -5/Cetus | Discovered new exit (range 16) 11298 | -5/Cetus | Manufactured an Enhanced Grunt 11318 | -5/Cetus | Lost 5 allies 11323 | -5/Cetus | Manufactured an Enhanced Grunt 11348 | -5/Cetus | Manufactured an Enhanced Grunt 11349 | -5/Cetus | Identified exit to Archives 11630 | -5/Cetus | Entered Archives 11630 | -5/Archives | Accompanied by 5 allies 11635 | -5/Archives | Met Zhirov 11637 | -5/Archives | Unable to access archive contents 11641 | -5/Archives | Reinforcements dispatched to Archives 11650 | -5/Archives | Unable to access archive contents 11654 | -5/Archives | Discovered new exit (range 16) 11658 | -5/Archives | Identified exit to Hub_04(d) 11686 | -5/Archives | Reinforcements dispatched to Archives 11706 | -5/Archives | Zhirov detonated Archives 11727 | -5/Archives | Discovered exit to Factory (range 15) 11728 | -5/Archives | Discovered exit to Hub_04(d) (range 14) 11734 | -5/Archives | Entered Hub_04(d) 11737 | -5/Hub_04(d) | Lost 5 allies 11806 | -5/Hub_04(d) | Network Hub disabled 11809 | -5/Hub_04(d) | Network Hub disabled 11812 | -5/Hub_04(d) | Spotted Lightning 11814 | -5/Hub_04(d) | Spotted Lightning 11815 | -5/Hub_04(d) | Spotted Lightning 11815 | -5/Hub_04(d) | Spotted Lightning 11816 | -5/Hub_04(d) | Core integrity fell below 50% 11818 | -5/Hub_04(d) | System corruption reached 10% 11820 | -5/Hub_04(d) | Spotted Lightning 11821 | -5/Hub_04(d) | Spotted Lightning 11823 | -5/Hub_04(d) | Spotted Lightning 11824 | -5/Hub_04(d) | Spotted Lightning 11825 | -5/Hub_04(d) | Spotted Lightning 11825 | -5/Hub_04(d) | Entered Factory 11825 | -4/Factory | Evolved 2 slots: Propulsion x1, Utility x1 11852 | -4/Factory | Lost 9 parts (1p4n4u) 12002 | -4/Factory | Repaired Centrium Medium Armor Plating 12103 | -4/Factory | Lost 5 parts (1n3u1w) 12132 | -4/Factory | Core integrity fell below 50% 12143 | -4/Factory | Lost 3 parts (1p2u) 12146 | -4/Factory | Identified exit to Upper Caves 12147 | -4/Factory | Spotted B-86 Titan 12148 | -4/Factory | Destroyed B-86 Titan 12178 | -4/Factory | Garrison activated, responded to threat 12256 | -4/Factory | System corruption reached 10% 12260 | -4/Factory | Core integrity fell below 20% 12280 | -4/Factory | Identified exit to Garrison 12280 | -4/Factory | Entered Garrison 12319 | -4/Garrison | Garrison Relay disabled 12329 | -4/Garrison | Destroyed by H-77 Assassin with Coil Gun Last Messages --------------- 12280_ EXIT=UNLOCKED: GARRISON LOCATION=GARRISON GOAL=ESCAPE 12305_ System corrupted: Heat flow error (+147). 12310_ Slug penetrates Wall. 12310_ Penetrated by Slug. 12310_ Slug penetrates Wall. 12319_ Garrison Relay disabled. 12319_ Relay Coupler [Sentry] tumbles out of relay unit. 12319_ Relay Coupler [NC] tumbles out of relay unit. 12319_ Relay Coupler [Brawler] tumbles out of relay unit. 12322_ Acquired Relay Coupler [Sentry]. 12324_ Acquired Relay Coupler [Brawler]. 12324_ Relay Coupler [Brawler] fries itself. 12326_ Acquired Relay Coupler [NC]. 12326_ Relay Coupler [NC] fries itself. 12328_ Penetrated by Slug. Map ----- +----------------------------------------------------+ | ???????????????? ??? #????????????????????? | | ????????????????? ?? ????????????????????? | | ????????????????? ?? ????????????????????? | | ??????????????? ??# ?# #????????????????????? | | ??????????????? ## ## #????????????????????? | | ?????????????? "????????????????????? | | ?????????????? "????????????????????? | | ??????????????? "????????????????????? | | ????????????????? ? "????????????????????? | | ?????????????# ???# ?# #????????????????????? | | ?????????????# ## ##hh ###########??????????? | | ?????????????# #??????????? | | ?????????????# #??????????? | | ?????????????# ######## #??????????? | | ?????????????## ##""""## ##??????# #??????????? | | ????????????????????????# #???????# #??????????? | | ????????????????????????# #???????# #??????????? | | ????????????????????????# #???????# #??????????? | | ????????????????????????# #???????# #??????????? | | ????????????????????????# #???????# #??????????? | | ????????????????????????# #???????# #??????????? | | ????????????????????????# #???????# #??????????? | | ????????????????????????# "???????# #??????????? | | ????????????????????????# "???????# #??????????? | | ????????????????????????# "???????# #??????????? | | ??????????????????????###@ #???????# #??????????? | | ??????????????????????#"# #???????# #??????????? | | ??????????????????????#" #???????# #??????????? | | ??????????????????????# #???????# #??????????? | | ??????????????????????#" #???????# #???????#### | | ??????????????????????#"# #???????# #???????# | | ??????????????????????######???????# ######### | | ???????????????????????????????????# | | ???????????????????????????????????# | | ???????????????????????????????????############### | | ?????????????????????????????????????????????????? | | ?????????????????????????????????????????????????? | | ?????????????????????????????????????????????????? | | ?????????????????????????????????????????????????? | | ?????????????????????????????????????????????????? | | ?????????????????????????????????????????????????? | | ?????????????????????????????????????????????????? | | ?????????????????????????????????????????????????? | | ?????????????????????????????????????????????????? | | ?????????????????????????????????????????????????? | | ?????????????????????????????????????????????????? | | ?????????????????????????????????????????????????? | | ?????????????????????????????????????????????????? | | ?????????????????????????????????????????????????? | | ?????????????????????????????????????????????????? | +----------------------------------------------------+ Best States ------------- Heat Dissipation 78 Energy Generation 35 Energy Capacity 350 Matter Stores 300 Matter Capacity 300 Sight Range 16 Robot Scan Range 16 Terrain Scan Density 10 ECM Strength 1 Armor Coverage 625 Resistance: KI 20 Resistance: TH 30 Resistance: EX 20 Resistance: EM 20 Resistance: I 20 Resistance: S 20 Resistance: P 20 Propulsion Shielding 66 Phase Shifting 5 Evasion (%) 68 Targeting Accuracy 5 Recoil Reduction 2 Offensive Hacking 35 Defensive Hacking 14 Item Schematics ----------------- Med. Storage Unit | -10/Materials | Hacked Lrg. Storage Unit | -9/Materials | Hacked ECM Suite | -9/Materials | Hacked Imp. VTOL Module | -7/Factory | Hacked Cesium-ion Thruster | -7/Factory | Scanalyzed Hvy. Gauss Cannon | -7/Factory | Scanalyzed System Shield | -7/Factory | Hacked Combat Drone Bay | -7/Data Miner | Free Lgt. Regenerative Plating | -7/Data Miner | Free Biomechanical Wings | -7/Data Miner | Free Thermal Defense Suite | -7/Data Miner | Free Imp. Heavy Machine Gun | -7/Data Miner | Free Linear Gravjet | -7/Data Miner | Free Point Defense System | -7/Data Miner | Free Wave Gun | -7/Data Miner | Free Lrn. Tractor Beam | -7/Data Miner | Free Imp. Force Field | -7/Data Miner | Free Field Propulsion Array | -7/Data Miner | Free Adv. Hacking Suite | -6/Factory | Scanalyzed Cld. Cesium-ion Thruster | -6/Factory | Scanalyzed Adv. System Shield | -6/Factory | Hacked Adv. Sensor Array | -6/Factory | Hacked Riot Gun | -6/Zion | Free Battle Cannon | -6/Zion | Free Hvy. Riot Gun | -6/Zion | Free Hvy. Beamcaster | -6/Zion | Free Hvy. Machine Gun | -6/Zion | Archive Imp. Transmission Jammer | -6/Zion | Archive Field Propulsion Drive | -6/Zion | Archive Enh. Gauss Cannon | -6/Zion | Archive Enh. Optical Array | -6/Zion | Archive Impulse Thruster | -6/Zion | Archive KE Penetrator | -6/Zion | Archive Lgt. Fission Core | -6/Zion | Archive Matter Neutralizer | -6/Zion | Archive Fission Core | -6/Zion | Archive Imp. Reaction Control System | -6/Zion | Archive Imp. Focal Shield | -6/Zion | Archive Energy Well | -6/Zion | Archive Exp. Propulsion Shielding | -5/Factory | Hacked Adv. Signal Interpreter | -5/Factory | Hacked Robot Schematics ------------------ H-66 Slayer | -7/Data Miner | Free G-50 Soldier | -7/Data Miner | Free O-24 Administrator | -7/Data Miner | Free L-41 Fighter | -7/Data Miner | Free A-15 Conveyor | -7/Data Miner | Free S-27 Virus | -7/Data Miner | Free G-47 Trooper | -6/Zion | Archive R-10 Processor | -6/Zion | Archive H-77 Assassin | -6/Zion | Archive Fabricated ------------ Imp. VTOL Module | x1 | -7/Factory Cesium-ion Thruster | x2 | -7/Factory Imp. VTOL Module | x1 | -7/Factory Imp. VTOL Module | x1 | -7/Factory System Shield | x1 | -7/Factory Field Propulsion Array | x1 | -6/Factory Biomechanical Wings | x1 | -6/Factory Adv. Hacking Suite | x1 | -6/Factory Adv. Sensor Array | x2 | -6/Factory Impulse Thruster | x2 | -5/Factory Adv. Signal Interpreter | x2 | -5/Factory Alien Tech Used ----------------- Core Expander Achievements -------------- Beloved Collateral Damage Generalissimo Project G-00 Challenges ------------ None Game ------ Seed CompactNeutronDetonator Manual? 0 Play Time 03:28:04 Cumulative 129.4 hours Start 2024.10.29 @ 10:48:28 End 2024.10.29 @ 14:49:28 Sessions 3 Manual Loads 0 Difficulty Adventurer Special Mode None Game No. 62 Rogue 0 Adventurer 62 Explorer 0 Win Type - Total 6 Types 6/0/0/0/0/0/0/0/0 Lore% 63 Gallery% 64 Achievement% 53 Wizard Run 0 Options --------- Layout 1 ASCII 0 Keyboard 1 Movement Vi Keybinds 0 Fullscreen 1 Font 28/Terminus Map View 50x43 Zoom Use 0% Tactical HUD 1 Map Filters NONE Filters NONE Steam 1 RUN: f57f00fa-8059-4327-af7d-d55a70fd276d